[Event "XIII Mediterranean Championship 2023"]
[Site "Castell-Platja d Aro"]
[Date "2023.11.06"]
[Round "4.13"]
[White "Makka, Ioulia"]
[Black "Martinez Pla, Xavier"]
[Result "1/2-1/2"]
[ECO "B48"]
[WhiteElo "1900"]
[BlackElo "2263"]
[Annotator "RC"]
[PlyCount "97"]
[EventDate "2023.10.26"]
[EventType "swiss"]
[EventCountry "ESP"]
[SourceTitle "playchess.com"]
[Source "ChessBase"]
[SourceQuality "1"]
[TimeControl "5400+30"]

1. e4 {[%emt 0:01:11]} c5 {[%emt 0:00:12]} 2. Nf3 {[%emt 0:00:15]} e6 {[%emt 0:00:14]} 3. d4 {[%emt 0:00:13]} cxd4 {[%emt 0:00:18]} 4. Nxd4 {[%emt 0:00:07]} Nc6 {[%emt 0:00:03]} 5. Nc3 {[%emt 0:00:16]} Qc7 {[%emt 0:00:05]} 6. Be3 {[%emt 0:01:23]} a6 {[%emt 0:00:05]} 7. f4 {[%emt 0:00:41]} b5 {[%emt 0:05:00]} 8. Nb3 {[%emt 0:01:21]} Bb7 {[%emt 0:03:57]} 9. Bd3 {[%emt 0:00:37]} d6 {[%emt 0:05:53]} 10. O-O {[%emt 0:03:08]} Nf6 {[%emt 0:01:58]} 11. Qe1 {[%emt 0:07:10]} Be7 {[%emt 0:03:58]} 12. Qg3 {[%emt 0:05:46]} h5 {[%emt 0:06:08]} 13. h3 {[%emt 0:02:41]} h4 {[%emt 0:01:36]} 14. Qf2 {[%emt 0:02:18]} Nb4 {[%emt 0:13:02]} 15. Bb6 {[%emt 0:03:27]} Qd7 {[%emt 0:08:12]} 16. Na5 {[%emt 0:00:59]} O-O {[%emt 0:03:24]} 17. Nxb7 {[%emt 0:02:36]} Qxb7 {[%emt 0:00:22]} 18. a4 {[%emt 0:08:05]} Nxd3 {[%emt 0:03:39]} 19. cxd3 {[%emt 0:00:08]} b4 {[%emt 0:01:13]} 20. Ne2 {[%emt 0:02:24]} Rac8 {[%emt 0:02:50]} 21. Rfc1 {[%emt 0:01:33]} Nd7 {[%emt 0:03:18]} 22. Be3 {[%emt 0:05:57]} Nc5 {[%emt 0:00:19]} 23. Bxc5 {[%emt 0:01:01]} dxc5 {[%emt 0:00:21]} 24. Rc4 {[%emt 0:03:05]} Rfd8 {[%emt 0:03:08]} 25. Rd1 {[%emt 0:02:35]} Rc7 {[%emt 0:10:29]} 26. b3 {[%emt 0:01:51]} Rcd7 {[%emt 0:00:56]} 27. Qe3 {[%emt 0:02:06]} Qb6 {[%emt 0:01:17]} 28. Kh1 {[%emt 0:00:50]} Kh7 {[%emt 0:02:46]} 29. Ng1 {[%emt 0:02:05]} Rd4 {[%emt 0:04:34]} 30. Rxd4 {[%emt 0:10:08]} cxd4 {[%emt 0:00:48]} 31. Qc1 {[%emt 0:00:45]} Qb8 {[%emt 0:00:17]} 32. Ne2 {[%emt 0:01:08]} e5 {[%emt 0:05:14]} 33. fxe5 {[%emt 0:01:54]} Qxe5 {[%emt 0:00:06]} 34. Ng1 {[%emt 0:03:57]} Qe6 {[%emt 0:02:49]} 35. Qb2 {[%emt 0:00:53]} Rc8 {[%emt 0:04:26]} 36. Nf3 {[%emt 0:00:37]} Rc3 {[%emt 0:01:07]} 37. Nxd4 {[%emt 0:01:14]} Qf6 {[%emt 0:02:00]} 38. Nf5 {[%emt 0:04:23]} Rxd3 {[%emt 0:00:11]} 39. Qb1 {[%emt 0:01:32]} Rxd1+ {[%emt 0:00:02]} 40. Qxd1 {[%emt 0:00:06]} Bf8 {[%emt 0:02:29]} 41. Qh5+ {[%emt 0:00:59]} Kg8 {[%emt 0:00:08]} 42. Qxh4 {[%emt 0:01:17]} Qa1+ {[%emt 0:00:02]} 43. Kh2 {[%emt 0:00:13]} g6 {[%emt 0:01:57]} 44. Ne7+ {[%emt 0:03:38]} Kg7 {[%emt 0:00:09]} 45. Qg5 {[%emt 0:01:27]} Bxe7 {[%emt 0:01:20]} 46. Qxe7 {[%emt 0:00:03]} Qc3 {[%emt 0:00:06]} 47. e5 {[%emt 0:03:35]} Qxb3 {[%emt 0:00:22]} 48. Qf6+ {[%emt 0:03:05]} Kh7 {[%emt 0:00:16]} 49. Qh4+ {[%emt 0:00:33]} 1/2-1/2

[Event "XIII Mediterranean Championship 2023"]
[Site "Castell-Platja d Aro"]
[Date "2023.11.06"]
[Round "4.14"]
[White "Jimenez Ruano, Adrian"]
[Black "Pla Almenar, Nel"]
[Result "1-0"]
[ECO "A84"]
[WhiteElo "2281"]
[BlackElo "2070"]
[Annotator "RC"]
[PlyCount "55"]
[EventDate "2023.10.26"]
[EventType "swiss"]
[EventCountry "ESP"]
[SourceTitle "playchess.com"]
[Source "ChessBase"]
[SourceQuality "1"]
[TimeControl "5400+30"]

1. d4 {[%emt 0:01:07]} e6 {[%emt 0:00:16]} 2. c4 {[%emt 0:01:18]} f5 {[%emt 0:00:07]} 3. Nf3 {[%emt 0:00:52]} Nf6 {[%emt 0:00:27]} 4. Qc2 {[%emt 0:04:38]} b6 {[%emt 0:03:32]} 5. g3 {[%emt 0:06:59]} Be7 {[%emt 0:06:35]} 6. Bg2 {[%emt 0:00:14]} d5 {[%emt 0:05:38]} 7. O-O {[%emt 0:14:17]} Ne4 {[%emt 0:06:23]} 8. Nc3 {[%emt 0:06:29]} Bb7 {[%emt 0:04:07]} 9. Bf4 {[%emt 0:03:43]} c6 {[%emt 0:05:36]} 10. Nd2 {[%emt 0:11:18]} Nd7 {[%emt 0:12:29]} 11. Ndxe4 {[%emt 0:02:46]} fxe4 {[%emt 0:01:55]} 12. Bh3 {[%emt 0:05:48]} g5 {[%emt 0:03:50]} 13. Be3 {[%emt 0:01:22]} Nf8 {[%emt 0:06:26]} 14. cxd5 {[%emt 0:06:40]} exd5 {[%emt 0:03:10]} 15. f3 {[%emt 0:00:31]} exf3 {[%emt 0:01:14]} 16. Rxf3 {[%emt 0:00:08]} Qd6 {[%emt 0:01:56]} 17. Qf5 {[%emt 0:05:16]} Qg6 {[%emt 0:04:23]} 18. Qe5 {[%emt 0:02:30]} g4 {[%emt 0:01:33]} 19. Bxg4 {[%emt 0:02:41]} Qxg4 {[%emt 0:00:43]} 20. Qxh8 {[%emt 0:00:05]} O-O-O {[%emt 0:01:14]} 21. Qe5 {[%emt 0:00:32]} Ne6 {[%emt 0:00:57]} 22. Rc1 {[%emt 0:06:08]} Bd6 {[%emt 0:01:39]} 23. Qf5 {[%emt 0:01:42]} Qg8 {[%emt 0:00:36]} 24. Nxd5 {[%emt 0:01:41]} Rf8 {[%emt 0:00:57]} 25. Nf6 {[%emt 0:00:18]} Qf7 {[%emt 0:01:01]} 26. d5 {[%emt 0:00:27]} c5 {[%emt 0:01:02]} 27. dxe6 {[%emt 0:02:04]} Qe7 {[%emt 0:00:23]} 28. Nd5 {[%emt 0:00:27]} 1-0

[Event "XIII Mediterranean Championship 2023"]
[Site "Castell-Platja d Aro"]
[Date "2023.11.06"]
[Round "4.15"]
[White "Ventura Bolet, Alexandre"]
[Black "Makka, Evanthia"]
[Result "1/2-1/2"]
[ECO "A13"]
[WhiteElo "2238"]
[BlackElo "2004"]
[Annotator "RC"]
[PlyCount "73"]
[EventDate "2023.10.26"]
[EventType "swiss"]
[EventCountry "ESP"]
[SourceTitle "playchess.com"]
[Source "ChessBase"]
[SourceQuality "1"]
[TimeControl "5400+30"]

1. Nf3 {[%emt 0:00:02]} d5 {[%emt 0:04:39]} 2. e3 {[%emt 0:00:09]} Nf6 {[%emt 0:00:52]} 3. c4 {[%emt 0:00:09]} e6 {[%emt 0:00:53]} 4. b3 {[%emt 0:00:08]} b6 {[%emt 0:00:13]} 5. Bb2 {[%emt 0:00:21]} Bb7 {[%emt 0:00:07]} 6. Nc3 {[%emt 0:00:31]} Bd6 {[%emt 0:03:20]} 7. cxd5 {[%emt 0:09:55]} exd5 {[%emt 0:00:13]} 8. Nb5 {[%emt 0:00:58]} Be7 {[%emt 0:02:52]} 9. Be5 {[%emt 0:00:35]} Na6 {[%emt 0:00:20]} 10. Be2 {[%emt 0:01:28]} O-O {[%emt 0:05:45]} 11. O-O {[%emt 0:00:34]} Ne8 {[%emt 0:22:24]} 12. d4 {[%emt 0:02:59]} Nb4 {[%emt 0:12:00]} 13. a3 {[%emt 0:10:30]} Nc6 {[%emt 0:01:04]} 14. Qc2 {[%emt 0:10:16]} a6 {[%emt 0:04:16]} 15. Nc3 {[%emt 0:00:21]} Nxe5 {[%emt 0:02:22]} 16. Nxe5 {[%emt 0:00:25]} Bd6 {[%emt 0:00:50]} 17. f4 {[%emt 0:03:37]} Qe7 {[%emt 0:04:48]} 18. Rf3 {[%emt 0:09:42]} Nf6 {[%emt 0:07:55]} 19. Bd3 {[%emt 0:16:42]} c5 {[%emt 0:12:46]} 20. g4 {[%emt 0:08:14]} c4 {[%emt 0:07:08]} 21. Bf5 {[%emt 0:00:54]} g6 {[%emt 0:02:22]} 22. g5 {[%emt 0:01:53]} Bxe5 {[%emt 0:00:15]} 23. dxe5 {[%emt 0:08:46]} Nh5 {[%emt 0:01:37]} 24. Rh3 {[%emt 0:00:18]} Ng7 {[%emt 0:01:09]} 25. Bg4 {[%emt 0:00:56]} Qc7 {[%emt 0:01:18]} 26. Ne2 {[%emt 0:06:19]} Bc8 {[%emt 0:01:16]} 27. Bxc8 {[%emt 0:03:12]} Qxc8 {[%emt 0:00:06]} 28. Kg2 {[%emt 0:00:41]} Qg4+ {[%emt 0:00:47]} 29. Rg3 {[%emt 0:02:25]} Qf5 {[%emt 0:00:06]} 30. e4 {[%emt 0:01:03]} dxe4 {[%emt 0:00:57]} 31. bxc4 {[%emt 0:00:06]} Nh5 {[%emt 0:00:16]} 32. Rf1 {[%emt 0:00:41]} Nxg3 {[%emt 0:00:35]} 33. Nxg3 {[%emt 0:00:16]} Qg4 {[%emt 0:00:29]} 34. h3 {[%emt 0:00:16]} Qe6 {[%emt 0:00:17]} 35. Nxe4 {[%emt 0:00:21]} Rac8 {[%emt 0:00:13]} 36. Nd6 {[%emt 0:00:51]} Rc6 {[%emt 0:00:29]} 37. Rd1 {[%emt 0:01:00]} 1/2-1/2

[Event "XIII Mediterranean Championship 2023"]
[Site "Castell-Platja d Aro"]
[Date "2023.11.06"]
[Round "4.16"]
[White "Vehi Bach, Victor Manuel"]
[Black "Jimenez Fernandez, Rebeca"]
[Result "1/2-1/2"]
[ECO "B12"]
[WhiteElo "2216"]
[BlackElo "2053"]
[Annotator "RC"]
[PlyCount "132"]
[EventDate "2023.10.26"]
[EventType "swiss"]
[EventCountry "ESP"]
[SourceTitle "playchess.com"]
[Source "ChessBase"]
[SourceQuality "1"]
[TimeControl "5400+30"]

1. e4 {[%emt 0:00:02]} c6 {[%emt 0:00:03]} 2. d4 {[%emt 0:00:09]} d5 {[%emt 0:00:04]} 3. e5 {[%emt 0:00:16]} c5 {[%emt 0:00:04]} 4. dxc5 {[%emt 0:00:49]} e6 {[%emt 0:00:04]} 5. a3 {[%emt 0:00:37]} Bxc5 {[%emt 0:00:09]} 6. b4 {[%emt 0:05:22]} Be7 {[%emt 0:01:32]} 7. Nf3 {[%emt 0:01:46]} f6 {[%emt 0:00:29]} 8. Bd3 {[%emt 0:01:46]} a5 {[%emt 0:00:30]} 9. b5 {[%emt 0:00:59]} Nd7 {[%emt 0:00:59]} 10. Bb2 {[%emt 0:00:42]} Nh6 {[%emt 0:14:11]} 11. Qe2 {[%emt 0:17:45]} Nf7 {[%emt 0:02:23]} 12. exf6 {[%emt 0:02:17]} gxf6 {[%emt 0:02:19]} 13. c4 {[%emt 0:00:26]} Nc5 {[%emt 0:03:19]} 14. cxd5 {[%emt 0:14:36]} Nxd3+ {[%emt 0:00:44]} 15. Qxd3 {[%emt 0:00:09]} e5 {[%emt 0:01:40]} 16. Nbd2 {[%emt 0:03:28]} b6 {[%emt 0:11:51]} 17. Nc4 {[%emt 0:02:42]} Bd7 {[%emt 0:09:59]} 18. a4 {[%emt 0:04:32]} Bb4+ {[%emt 0:01:55]} 19. Bc3 {[%emt 0:07:31]} Bf5 {[%emt 0:04:13]} 20. Qe3 {[%emt 0:18:05]} Rc8 {[%emt 0:02:25]} 21. Nfd2 {[%emt 0:00:01]} Bxc3 {[%emt 0:28:14]} 22. Qxc3 {[%emt 0:00:09]} Qxd5 {[%emt 0:03:36]} 23. O-O {[%emt 0:11:05]} Rg8 {[%emt 0:03:27]} 24. f3 {[%emt 0:00:19]} Qc5+ {[%emt 0:00:48]} 25. Qe3 {[%emt 0:01:11]} Qxe3+ {[%emt 0:01:23]} 26. Nxe3 {[%emt 0:00:01]} Be6 {[%emt 0:00:20]} 27. Rac1 {[%emt 0:01:25]} Ke7 {[%emt 0:01:36]} 28. Ndc4 {[%emt 0:00:14]} Rb8 {[%emt 0:00:50]} 29. Rfd1 {[%emt 0:02:29]} Rgc8 {[%emt 0:01:17]} 30. Nb2 {[%emt 0:02:29]} Bb3 {[%emt 0:01:28]} 31. Rxc8 {[%emt 0:00:02]} Rxc8 {[%emt 0:00:06]} 32. Rd3 {[%emt 0:00:18]} Rc1+ {[%emt 0:01:04]} 33. Kf2 {[%emt 0:00:09]} Be6 {[%emt 0:00:18]} 34. Ke2 {[%emt 0:00:48]} Nd6 {[%emt 0:00:39]} 35. Nd5+ {[%emt 0:00:44]} Bxd5 {[%emt 0:00:28]} 36. Rxd5 {[%emt 0:00:02]} Nf5 {[%emt 0:00:36]} 37. Rd2 {[%emt 0:00:46]} Nd4+ {[%emt 0:00:22]} 38. Kd3 {[%emt 0:00:53]} Kd6 {[%emt 0:00:48]} 39. Rd1 {[%emt 0:01:23]} Rxd1+ {[%emt 0:01:42]} 40. Nxd1 {[%emt 0:00:02]} Kc5 {[%emt 0:00:06]} 41. Ne3 {[%emt 0:00:53]} Kb4 {[%emt 0:00:57]} 42. Nd5+ {[%emt 0:00:07]} Kxa4 {[%emt 0:00:04]} 43. Kc4 {[%emt 0:00:06]} Ka3 {[%emt 0:01:12]} 44. Nxb6 {[%emt 0:00:08]} f5 {[%emt 0:01:44]} 45. Nd5 {[%emt 0:00:44]} a4 {[%emt 0:00:25]} 46. b6 {[%emt 0:00:14]} Nc6 {[%emt 0:00:33]} 47. Kb5 {[%emt 0:00:51]} Nd4+ {[%emt 0:00:32]} 48. Kc5 {[%emt 0:00:50]} Nb3+ {[%emt 0:00:04]} 49. Kb5 {[%emt 0:00:08]} Nd4+ {[%emt 0:00:07]} 50. Ka6 {[%emt 0:01:06]} Kb3 {[%emt 0:00:27]} 51. Ne7 {[%emt 0:00:21]} Ne6 {[%emt 0:00:19]} 52. Kb5 {[%emt 0:00:22]} Nd8 {[%emt 0:00:47]} 53. Nc6 {[%emt 0:00:11]} Nb7 {[%emt 0:00:21]} 54. Na5+ {[%emt 0:00:13]} Kc3 {[%emt 0:01:06]} 55. Kxa4 {[%emt 0:00:56]} Nd6 {[%emt 0:00:07]} 56. Nb3 {[%emt 0:02:03]} e4 {[%emt 0:00:15]} 57. fxe4 {[%emt 0:00:17]} fxe4 {[%emt 0:00:04]} 58. Nc1 {[%emt 0:00:20]} e3 {[%emt 0:00:17]} 59. Ne2+ {[%emt 0:00:24]} Kd2 {[%emt 0:00:39]} 60. Nf4 {[%emt 0:00:09]} e2 {[%emt 0:00:59]} 61. Nxe2 {[%emt 0:00:06]} Kxe2 {[%emt 0:00:03]} 62. Kb4 {[%emt 0:00:03]} Kf2 {[%emt 0:00:33]} 63. Kc5 {[%emt 0:00:24]} Nb7+ {[%emt 0:00:14]} 64. Kc6 {[%emt 0:00:10]} Na5+ {[%emt 0:00:26]} 65. Kb5 {[%emt 0:00:13]} Nb7 {[%emt 0:00:13]} 66. Kc6 {[%emt 0:00:07]} Na5+ {[%emt 0:00:04]} 1/2-1/2

[Event "XIII Mediterranean Championship 2023"]
[Site "Castell-Platja d Aro"]
[Date "2023.11.06"]
[Round "4.17"]
[White "Clot Chico, Arnau"]
[Black "Rojano Alfonso, Carlos"]
[Result "0-1"]
[ECO "A98"]
[WhiteElo "2008"]
[BlackElo "2207"]
[Annotator "RC"]
[PlyCount "42"]
[EventDate "2023.10.26"]
[EventType "swiss"]
[EventCountry "ESP"]
[SourceTitle "playchess.com"]
[Source "ChessBase"]
[SourceQuality "1"]
[TimeControl "5400+30"]

1. c4 {[%emt 0:12:20]} f5 {[%emt 0:00:06]} 2. g3 {[%emt 0:00:10]} Nf6 {[%emt 0:00:06]} 3. Bg2 {[%emt 0:00:06]} d6 {[%emt 0:00:04]} 4. d4 {[%emt 0:00:07]} e6 {[%emt 0:00:04]} 5. Nc3 {[%emt 0:00:43]} Be7 {[%emt 0:00:07]} 6. Nf3 {[%emt 0:02:26]} O-O {[%emt 0:00:06]} 7. O-O {[%emt 0:01:29]} Qe8 {[%emt 0:00:04]} 8. Qc2 {[%emt 0:04:52]} Qh5 {[%emt 0:00:53]} 9. e4 {[%emt 0:01:22]} e5 {[%emt 0:00:09]} 10. dxe5 {[%emt 0:02:04]} dxe5 {[%emt 0:00:09]} 11. Bg5 {[%emt 0:10:30]} fxe4 {[%emt 0:11:05]} 12. Nxe4 {[%emt 0:01:30]} Nc6 {[%emt 0:00:29]} 13. Nxf6+ {[%emt 0:04:03]} Bxf6 {[%emt 0:01:26]} 14. Be3 {[%emt 0:09:33]} Bf5 {[%emt 0:14:29]} 15. Qb3 {[%emt 0:07:07]} e4 {[%emt 0:08:37]} 16. Nd2 {[%emt 0:02:52]} Ne5 {[%emt 0:03:19]} 17. Nxe4 {[%emt 0:09:22]} Bxe4 {[%emt 0:03:05]} 18. Bxe4 {[%emt 0:00:56]} Ng4 {[%emt 0:00:20]} 19. h4 {[%emt 0:03:00]} Bxh4 {[%emt 0:01:11]} 20. Kg2 {[%emt 0:08:53]} Bg5 {[%emt 0:12:41]} 21. f4 {[%emt 0:00:42]} Qh2+ {[%emt 0:00:11]} 0-1

[Event "XIII Mediterranean Championship 2023"]
[Site "Castell-Platja d Aro"]
[Date "2023.11.06"]
[Round "4.18"]
[White "Vinolas Anglada, Laura"]
[Black "Banos, Oscar"]
[Result "0-1"]
[ECO "B33"]
[WhiteElo "1884"]
[BlackElo "2188"]
[Annotator "RC"]
[PlyCount "118"]
[EventDate "2023.10.26"]
[EventType "swiss"]
[EventCountry "ESP"]
[SourceTitle "playchess.com"]
[Source "ChessBase"]
[SourceQuality "1"]
[TimeControl "5400+30"]

1. e4 {[%emt 0:03:42]} c5 {[%emt 0:00:05]} 2. Nf3 {[%emt 0:00:48]} Nc6 {[%emt 0:00:09]} 3. d4 {[%emt 0:00:09]} cxd4 {[%emt 0:00:10]} 4. Nxd4 {[%emt 0:00:19]} Nf6 {[%emt 0:00:08]} 5. Nc3 {[%emt 0:00:22]} e5 {[%emt 0:00:08]} 6. Ndb5 {[%emt 0:00:27]} d6 {[%emt 0:00:12]} 7. Bg5 {[%emt 0:00:39]} a6 {[%emt 0:00:11]} 8. Na3 {[%emt 0:00:14]} b5 {[%emt 0:00:18]} 9. Nd5 {[%emt 0:00:12]} Be7 {[%emt 0:00:17]} 10. Bxf6 {[%emt 0:00:25]} Bxf6 {[%emt 0:00:07]} 11. c3 {[%emt 0:00:47]} Ne7 {[%emt 0:00:25]} 12. Nxe7 {[%emt 0:22:58]} Bxe7 {[%emt 0:15:38]} 13. Nc2 {[%emt 0:15:39]} Bb7 {[%emt 0:03:28]} 14. Qg4 {[%emt 0:05:10]} O-O {[%emt 0:09:47]} 15. Ne3 {[%emt 0:02:19]} g6 {[%emt 0:11:59]} 16. Rd1 {[%emt 0:06:27]} b4 {[%emt 0:03:31]} 17. cxb4 {[%emt 0:05:13]} h5 {[%emt 0:01:33]} 18. Qf3 {[%emt 0:03:21]} d5 {[%emt 0:01:03]} 19. Nxd5 {[%emt 0:05:36]} Bxd5 {[%emt 0:00:23]} 20. a3 {[%emt 0:03:30]} Bxe4 {[%emt 0:09:50]} 21. Rxd8 {[%emt 0:01:40]} Bxf3 {[%emt 0:00:13]} 22. Rxf8+ {[%emt 0:00:06]} Kxf8 {[%emt 0:00:28]} 23. gxf3 {[%emt 0:00:08]} Bg5 {[%emt 0:03:08]} 24. b3 {[%emt 0:01:43]} Rc8 {[%emt 0:01:05]} 25. Bc4 {[%emt 0:00:56]} Bc1 {[%emt 0:02:14]} 26. a4 {[%emt 0:00:51]} Ba3 {[%emt 0:00:05]} 27. Kf1 {[%emt 0:01:11]} Bxb4 {[%emt 0:02:22]} 28. Bxa6 {[%emt 0:00:20]} Rc3 {[%emt 0:00:31]} 29. Bc4 {[%emt 0:01:13]} Rxf3 {[%emt 0:00:10]} 30. Kg2 {[%emt 0:00:13]} e4 {[%emt 0:00:12]} 31. Rd1 {[%emt 0:00:28]} f5 {[%emt 0:01:07]} 32. Ra1 {[%emt 0:01:04]} Ba5 {[%emt 0:01:13]} 33. Rb1 {[%emt 0:00:36]} Rc3 {[%emt 0:01:11]} 34. Rd1 {[%emt 0:01:07]} Rc2 {[%emt 0:01:05]} 35. Kf1 {[%emt 0:04:06]} Ke7 {[%emt 0:01:26]} 36. Rd5 {[%emt 0:01:06]} Bb6 {[%emt 0:02:18]} 37. Be2 {[%emt 0:00:17]} Ke6 {[%emt 0:03:54]} 38. Rb5 {[%emt 0:00:30]} Bc7 {[%emt 0:00:23]} 39. h3 {[%emt 0:00:16]} f4 {[%emt 0:00:28]} 40. Bd1 {[%emt 0:08:21]} Rc1 {[%emt 0:03:16]} 41. Ke1 {[%emt 0:00:13]} f3 {[%emt 0:00:15]} 42. a5 {[%emt 0:01:17]} e3 {[%emt 0:00:24]} 43. fxe3 {[%emt 0:00:33]} f2+ {[%emt 0:03:43]} 44. Kxf2 {[%emt 0:00:06]} Rxd1 {[%emt 0:00:05]} 45. b4 {[%emt 0:00:13]} Ra1 {[%emt 0:00:26]} 46. Rb7 {[%emt 0:00:35]} Bd6 {[%emt 0:01:49]} 47. Rb6 {[%emt 0:00:29]} g5 {[%emt 0:02:46]} 48. a6 {[%emt 0:00:17]} g4 {[%emt 0:00:11]} 49. hxg4 {[%emt 0:00:12]} hxg4 {[%emt 0:00:24]} 50. b5 {[%emt 0:00:20]} g3+ {[%emt 0:01:07]} 51. Kg2 {[%emt 0:01:04]} Ra2+ {[%emt 0:00:14]} 52. Kg1 {[%emt 0:00:07]} Kd5 {[%emt 0:00:37]} 53. Rb7 {[%emt 0:01:42]} Bc5 {[%emt 0:00:56]} 54. Rg7 {[%emt 0:00:58]} Bxe3+ {[%emt 0:00:31]} 55. Kf1 {[%emt 0:00:09]} Bf4 {[%emt 0:03:01]} 56. a7 {[%emt 0:01:30]} Ke4 {[%emt 0:00:15]} 57. Rg8 {[%emt 0:02:11]} Rxa7 {[%emt 0:00:23]} 58. Rc8 {[%emt 0:00:21]} Kf3 {[%emt 0:00:31]} 59. Rc3+ {[%emt 0:00:14]} Be3 {[%emt 0:00:07]} 0-1

[Event "XIII Mediterranean Championship 2023"]
[Site "Castell-Platja d Aro"]
[Date "2023.11.06"]
[Round "4.19"]
[White "Vinals Rioja, Jaume"]
[Black "Lever, Erwan"]
[Result "0-1"]
[ECO "A03"]
[WhiteElo "1838"]
[BlackElo "2184"]
[Annotator "RC"]
[PlyCount "38"]
[EventDate "2023.10.26"]
[EventType "swiss"]
[EventCountry "ESP"]
[SourceTitle "playchess.com"]
[Source "ChessBase"]
[SourceQuality "1"]
[TimeControl "5400+30"]

1. f4 {[%emt 0:00:06]} d5 {[%emt 0:00:23]} 2. Nf3 {[%emt 0:00:13]} c5 {[%emt 0:00:09]} 3. g3 {[%emt 0:00:10]} Nf6 {[%emt 0:00:08]} 4. Bg2 {[%emt 0:00:16]} g6 {[%emt 0:00:05]} 5. d3 {[%emt 0:00:13]} Bg7 {[%emt 0:00:05]} 6. c3 {[%emt 0:00:11]} O-O {[%emt 0:00:06]} 7. O-O {[%emt 0:00:09]} b6 {[%emt 0:00:11]} 8. h3 {[%emt 0:01:56]} Bb7 {[%emt 0:00:24]} 9. d4 {[%emt 0:01:00]} Ne4 {[%emt 0:01:53]} 10. Kh2 {[%emt 0:00:12]} Nd7 {[%emt 0:04:00]} 11. Be3 {[%emt 0:00:40]} Qc7 {[%emt 0:01:54]} 12. Nbd2 {[%emt 0:00:21]} Nd6 {[%emt 0:00:32]} 13. Bf2 {[%emt 0:02:22]} f6 {[%emt 0:01:30]} 14. e3 {[%emt 0:01:45]} e5 {[%emt 0:01:09]} 15. Rc1 {[%emt 0:08:25]} Rae8 {[%emt 0:00:40]} 16. Re1 {[%emt 0:00:48]} Kh8 {[%emt 0:04:44]} 17. Bg1 {[%emt 0:02:41]} Qb8 {[%emt 0:00:37]} 18. Nb3 {[%emt 0:01:08]} c4 {[%emt 0:00:24]} 19. Nbd2 {[%emt 0:00:11]} e4 {[%emt 0:00:10]} 0-1

[Event "XIII Mediterranean Championship 2023"]
[Site "Castell-Platja d Aro"]
[Date "2023.11.06"]
[Round "4.21"]
[White "De Lomas Busquets, Alba"]
[Black "Zvereva, Marija"]
[Result "1-0"]
[ECO "C41"]
[WhiteElo "1873"]
[BlackElo "2144"]
[Annotator "RC"]
[PlyCount "33"]
[EventDate "2023.10.26"]
[EventType "swiss"]
[EventCountry "ESP"]
[SourceTitle "playchess.com"]
[Source "ChessBase"]
[SourceQuality "1"]
[TimeControl "5400+30"]

1. d4 {[%emt 1:31:00]} Nf6 {[%emt 1:31:00]} 2. Nf3 {[%emt 0:00:30]} d6 {[%emt 0:00:30]} 3. Nc3 {[%emt 0:00:30]} Nbd7 {[%emt 0:00:30]} 4. e4 {[%emt 0:00:30]} e5 {[%emt 0:00:30]} 5. Bc4 {[%emt 0:00:30]} Be7 {[%emt 0:00:30]} 6. Bxf7+ {[%emt 0:00:30]} Kxf7 {[%emt 0:00:30]} 7. Ng5+ {[%emt 0:00:30]} Kg8 {[%emt 0:00:30]} 8. Ne6 {[%emt 0:00:30]} Qe8 {[%emt 0:00:30]} 9. Nxc7 {[%emt 0:00:30]} Qg6 {[%emt 0:00:30]} 10. Nxa8 {[%emt 0:00:30]} Qxg2 {[%emt 0:00:30]} 11. Rf1 {[%emt 0:00:30]} exd4 {[%emt 0:00:30]} 12. Qxd4 {[%emt 0:00:30]} Ne5 {[%emt 0:00:30]} 13. f4 {[%emt 0:00:30]} Bh3 {[%emt 0:00:30]} 14. Qf2 {[%emt 0:00:30]} Qg6 {[%emt 0:00:30]} 15. fxe5 {[%emt 0:00:30]} Nxe4 {[%emt 0:00:30]} 16. Nd5 {[%emt 0:00:30]} Qe6 {[%emt 0:00:30]} 17. Nac7 {[%emt 0:00:30]} 1-0

[Event "XIII Mediterranean Championship 2023"]
[Site "Castell-Platja d Aro"]
[Date "2023.11.06"]
[Round "4.22"]
[White "Vinas Racionero, Josep"]
[Black "Canigueral Salvado, Jaume"]
[Result "1-0"]
[ECO "C00"]
[WhiteElo "2075"]
[BlackElo "1853"]
[Annotator "NA RC"]
[PlyCount "75"]
[EventDate "2023.10.26"]
[EventType "swiss"]
[EventCountry "ESP"]
[SourceTitle "playchess.com"]
[Source "ChessBase"]
[SourceQuality "1"]
[TimeControl "5400+30"]

1. e4 {[%emt 0:00:27]} e6 {[%emt 0:00:20]} 2. Nf3 {[%emt 1:31:03]} d5 {[%emt 0:00:21]} 3. e5 {[%emt 0:00:00]} c5 {[%emt 0:00:25]} 4. b4 {[%emt 0:01:00]} a6 {[%emt 1:31:24]} 5. bxc5 {[%emt 0:00:00]} Bxc5 {[%emt 0:00:00]} 6. d4 {[%emt 0:01:00]} Ba7 {[%emt 0:01:00]} 7. Bd3 {[%emt 0:00:30]} Ne7 {[%emt 0:00:30]} 8. h4 {[%emt 0:00:30]} Nbc6 {[%emt 0:00:00]} 9. c3 {[%emt 0:00:30]} b5 {[%emt 0:01:00]} 10. Nbd2 {[%emt 0:00:00]} h6 {[%emt 0:00:30]} 11. Nb3 {[%emt 0:01:00]} Na5 {[%emt 0:00:30]} 12. Nxa5 {[%emt 0:00:00]} Qxa5 {[%emt 0:00:30]} 13. Qb3 {[%emt 0:01:00]} Nc6 {[%emt 0:00:30]} 14. O-O {[%emt 0:00:30]} O-O {[%emt 0:00:30]} 15. Ba3 {[%emt 0:00:30]} Rd8 {[%emt 0:00:30]} 16. Bd6 {[%emt 0:00:30]} f5 {[%emt 0:00:30]} 17. Bxf5 {[%emt 0:00:30]} b4 {[%emt 0:00:30]} 18. cxb4 {[%emt 0:00:30]} Qb5 {[%emt 0:00:30]} 19. Bd3 {[%emt 0:00:30]} Qb7 {[%emt 0:00:30]} 20. Bc5 {[%emt 0:00:30]} Bxc5 {[%emt 0:00:30]} 21. bxc5 {[%emt 0:00:30]} Qe7 {[%emt 0:00:30]} 22. Rab1 {[%emt 0:00:30]} Bd7 {[%emt 0:00:00]} 23. Bc2 {[%emt 0:00:30]} Be8 {[%emt 0:01:00]} 24. Qd3 {[%emt 0:00:30]} g6 {[%emt 0:00:00]} 25. Rb6 {[%emt 0:00:00]} Na7 {[%emt 0:01:00]} 26. Rfb1 {[%emt 0:01:00]} Nb5 {[%emt 0:00:30]} 27. a4 {[%emt 0:00:00]} Nc7 {[%emt 0:00:00]} 28. Rb7 {[%emt 0:00:00]} Rac8 {[%emt 0:00:00]} 29. h5 {[%emt 0:01:30]} g5 {[%emt 0:01:30]} 30. R1b6 {[%emt 0:00:30]} Rd7 {[%emt 0:00:00]} 31. g4 {[%emt 0:00:30]} Na8 {[%emt 0:01:00]} 32. Qxa6 {[%emt 0:00:30]} Nxb6 {[%emt 0:00:00]} 33. Rxb6 {[%emt 0:00:30]} Rdc7 {[%emt 0:00:00]} 34. Rxe6 {[%emt 0:00:30]} Rc6 {[%emt 0:00:00]} 35. Qxc6 {[%emt 0:00:30]} Qd8 {[%emt 0:02:00]} 36. Qb7 {[%emt 0:00:00]} Bd7 {[%emt 0:00:30]} 37. Rg6+ {[%emt 0:01:00]} Kf8 {[%emt 0:00:00]} 38. Qxd5 {[%emt 0:00:30]} 1-0